[Event "27th Kavala Open 2018"]
[Site "Kavala"]
[Date "2018.08.10"]
[Round "8"]
[White "Trimitzios, Petros"]
[Black "Quparadze, Giga"]
[Result "0-1"]
[ECO "A33"]
[WhiteElo "2301"]
[BlackElo "2517"]
[Annotator "ChessBase"]
[PlyCount "112"]
[EventDate "2018.08.05"]
[EventType "swiss"]
[EventCountry "GRE"]
[SourceTitle "playchess.com"]
[Source "ChessBase"]
[SourceQuality "1"]
[TimeControl "40/5400+30:900+30"]

1. Nf3 {[%emt 0:00:09]} c5 {[%emt 0:00:06]} 2. c4 {[%emt 0:00:33]} Nc6 {[%emt 0:00:05]} 3. Nc3 {[%emt 0:00:23]} Nf6 {[%emt 0:00:06]} 4. d4 {[%emt 0:00:55]} cxd4 {[%emt 0:00:06]} 5. Nxd4 {[%emt 0:00:07]} e6 {[%emt 0:00:18]} 6. Ndb5 {[%emt 0:00:45]} d5 {[%emt 0:00:14]} 7. cxd5 {[%emt 0:00:14]} Nxd5 {[%emt 0:00:11]} 8. e4 {[%emt 0:01:18]} Nxc3 {[%emt 0:00:22]} 9. Qxd8+ {[%emt 0:00:07]} Kxd8 {[%emt 0:00:12]} 10. Nxc3 {[%emt 0:00:12]} Bb4 {[%emt 0:00:35]} 11. Bd2 {[%emt 0:01:09]} Ke7 {[%emt 0:00:35]} 12. O-O-O {[%emt 0:00:11]} Bc5 {[%emt 0:00:20]} 13. f3 {[%emt 0:02:07]} a6 {[%emt 0:00:38]} 14. Kb1 {[%emt 0:03:03]} Rd8 {[%emt 0:00:32]} 15. Bg5+ {[%emt 0:00:41]} f6 {[%emt 0:00:04]} 16. Rxd8 {[%emt 0:00:04]} Nxd8 {[%emt 0:00:03]} 17. Bd2 {[%emt 0:05:28]} b5 {[%emt 0:00:48]} 18. Be2 {[%emt 0:04:33]} Bd7 {[%emt 0:01:21]} 19. Rc1 {[%emt 0:00:29]} Bd6 {[%emt 0:00:07]} 20. g3 {[%emt 0:02:35]} Nc6 {[%emt 0:01:27]} 21. Be3 {[%emt 0:00:10]} Be8 {[%emt 0:00:34]} 22. f4 {[%emt 0:04:58]} Rb8 {[%emt 0:00:51]} 23. Bf3 {[%emt 0:03:15]} Na5 {[%emt 0:00:24]} 24. b3 {[%emt 0:07:26]} Ba3 {[%emt 0:00:08]} 25. Rd1 {[%emt 0:01:04]} Rc8 {[%emt 0:04:22]} 26. Ne2 {[%emt 0:02:41]} Nb7 {[%emt 0:00:13]} 27. Bc1 {[%emt 0:03:11]} Bc5 {[%emt 0:00:04]} 28. f5 {[%emt 0:00:54]} Bc6 {[%emt 0:06:09]} 29. fxe6 {[%emt 0:04:00]} Rd8 {[%emt 0:00:25]} 30. Rxd8 {[%emt 0:02:49]} Nxd8 {[%emt 0:00:10]} 31. Nf4 {[%emt 0:00:44]} Nxe6 {[%emt 0:00:06]} 32. Nxe6 {[%emt 0:00:18]} Kxe6 {[%emt 0:00:04]} 33. Kc2 {[%emt 0:00:05]} b4 {[%emt 0:00:46]} 34. Kd3 {[%emt 0:06:29]} Bb5+ {[%emt 0:00:43]} 35. Kc2 {[%emt 0:00:17]} Bg1 {[%emt 0:02:08]} 36. h4 {[%emt 0:01:04]} Ke5 {[%emt 0:01:24]} 37. Bf4+ {[%emt 0:05:15]} Kd4 {[%emt 0:00:04]} 38. Kd2 {[%emt 0:00:08]} g6 {[%emt 0:01:19]} 39. Bg2 {[%emt 0:09:09]} Bc6 {[%emt 0:00:51]} 40. Bd6 {[%emt 0:00:00]} Be3+ {[%emt 0:00:00]} 41. Ke2 {[%emt 0:02:30]} Bb5+ {[%emt 0:00:13]} 42. Ke1 {[%emt 0:03:36]} Kc3 {[%emt 0:01:50]} 43. e5 {[%emt 0:01:41]} fxe5 {[%emt 0:00:33]} 44. Bxe5+ {[%emt 0:00:02]} Kc2 {[%emt 0:00:16]} 45. Be4+ {[%emt 0:02:22]} Kc1 {[%emt 0:00:04]} 46. Bf4 {[%emt 0:16:33]} Bxf4 {[%emt 0:00:07]} 47. gxf4 {[%emt 0:00:04]} Bd7 {[%emt 0:02:21]} 48. Ke2 {[%emt 0:06:16]} Kb2 {[%emt 0:00:07]} 49. Bd5 {[%emt 0:00:42]} Bf5 {[%emt 0:01:23]} 50. Kd2 {[%emt 0:01:00]} Kxa2 {[%emt 0:00:14]} 51. Kc1 {[%emt 0:00:09]} a5 {[%emt 0:00:04]} 52. Bc4 {[%emt 0:00:29]} Ka3 {[%emt 0:00:08]} 53. Bd5 {[%emt 0:00:24]} a4 {[%emt 0:00:42]} 54. bxa4 {[%emt 0:00:08]} b3 {[%emt 0:00:05]} 55. Bxb3 {[%emt 0:00:08]} Kxb3 {[%emt 0:00:04]} 56. a5 {[%emt 0:00:04]} Kc3 {[%emt 0:00:06]} 0-1

[Event "27th Kavala Open 2018"]
[Site "Kavala"]
[Date "2018.08.10"]
[Round "8"]
[White "Giannoulakis, Lampros"]
[Black "Prince, Bajaj"]
[Result "1/2-1/2"]
[ECO "E49"]
[WhiteElo "2287"]
[BlackElo "2411"]
[Annotator "NA"]
[PlyCount "31"]
[EventDate "2018.08.05"]
[EventType "swiss"]
[EventCountry "GRE"]
[SourceTitle "playchess.com"]
[Source "ChessBase"]
[SourceQuality "1"]
[TimeControl "40/5400+30:900+30"]

1. d4 {[%emt 0:00:07]} Nf6 {[%emt 0:00:17]} 2. c4 {[%emt 0:00:07]} e6 {[%emt 0:00:23]} 3. Nc3 {[%emt 0:00:00]} Bb4 {[%emt 0:00:00]} 4. e3 {[%emt 0:00:14]} O-O {[%emt 0:00:00]} 5. Bd3 {[%emt 0:00:10]} d5 {[%emt 0:00:00]} 6. a3 {[%emt 0:00:54]} Bxc3+ {[%emt 0:05:00]} 7. bxc3 {[%emt 0:00:58]} b6 {[%emt 0:00:02]} 8. cxd5 {[%emt 0:00:16]} exd5 {[%emt 0:00:09]} 9. Ne2 {[%emt 0:00:09]} Ba6 {[%emt 0:00:30]} 10. Bxa6 {[%emt 0:04:35]} Nxa6 {[%emt 0:00:14]} 11. Qd3 {[%emt 0:00:59]} Nb8 {[%emt 0:03:23]} 12. O-O {[%emt 0:00:50]} c5 {[%emt 0:00:38]} 13. c4 {[%emt 0:15:23]} cxd4 {[%emt 0:26:02]} 14. Nxd4 {[%emt 0:00:38]} Nbd7 {[%emt 0:00:33]} 15. Nc6 {[%emt 0:04:09]} dxc4 {[%emt 0:00:29]} 16. Qxc4 {[%emt 0:40:57]} 1/2-1/2

[Event "27th Kavala Open 2018"]
[Site "Kavala"]
[Date "2018.08.10"]
[Round "8"]
[White "Avramidou, Anastasia"]
[Black "Hasangatin, Ramil"]
[Result "0-1"]
[ECO "A41"]
[WhiteElo "2271"]
[BlackElo "2491"]
[Annotator "ChessBase"]
[PlyCount "76"]
[EventDate "2018.08.05"]
[EventType "swiss"]
[EventCountry "GRE"]
[SourceTitle "playchess.com"]
[Source "ChessBase"]
[SourceQuality "1"]
[TimeControl "40/5400+30:900+30"]

1. d4 {[%emt 0:00:03]} d6 {[%emt 0:02:01]} 2. Nf3 {[%emt 0:00:11]} Nf6 {[%emt 0:01:13]} 3. c4 {[%emt 0:00:31]} g6 {[%emt 0:00:08]} 4. e3 {[%emt 0:00:04]} Bg7 {[%emt 0:02:45]} 5. Nc3 {[%emt 0:03:02]} O-O {[%emt 0:00:12]} 6. Be2 {[%emt 0:00:07]} Nbd7 {[%emt 0:01:35]} 7. O-O {[%emt 0:00:06]} e5 {[%emt 0:00:21]} 8. Qc2 {[%emt 0:00:08]} Re8 {[%emt 0:00:42]} 9. Rd1 {[%emt 0:00:11]} e4 {[%emt 0:04:03]} 10. Nd2 {[%emt 0:00:10]} Qe7 {[%emt 0:00:01]} 11. b4 {[%emt 0:00:29]} Nf8 {[%emt 0:01:47]} 12. Nb3 {[%emt 0:00:48]} h5 {[%emt 0:00:59]} 13. h3 {[%emt 0:02:35]} N8h7 {[%emt 0:03:20]} 14. Bb2 {[%emt 0:10:01]} Ng5 {[%emt 0:03:09]} 15. Bf1 {[%emt 0:00:11]} Bf5 {[%emt 0:03:46]} 16. Kh2 {[%emt 0:31:42]} c6 {[%emt 0:18:35]} 17. Ne2 {[%emt 0:15:19]} d5 {[%emt 0:07:51]} 18. Nf4 {[%emt 0:00:53]} Qd6 {[%emt 0:01:47]} 19. Kh1 {[%emt 0:09:33]} Rac8 {[%emt 0:01:02]} 20. Rac1 {[%emt 0:04:18]} dxc4 {[%emt 0:15:50]} 21. Qxc4 {[%emt 0:00:23]} b6 {[%emt 0:02:06]} 22. b5 {[%emt 0:03:11]} Nd5 {[%emt 0:00:08]} 23. h4 {[%emt 0:09:38]} Nf3 {[%emt 0:02:31]} 24. gxf3 {[%emt 0:03:58]} Nxf4 {[%emt 0:00:19]} 25. exf4 {[%emt 0:00:34]} Qxf4 {[%emt 0:00:35]} 26. Rc3 {[%emt 0:00:21]} c5 {[%emt 0:04:51]} 27. Qd5 {[%emt 0:02:45]} Rcd8 {[%emt 0:00:43]} 28. Qc6 {[%emt 0:01:27]} cxd4 {[%emt 0:00:19]} 29. Bc1 {[%emt 0:00:38]} Qxh4+ {[%emt 0:00:24]} 30. Kg1 {[%emt 0:00:03]} dxc3 {[%emt 0:00:32]} 31. Rxd8 {[%emt 0:00:16]} Qxd8 {[%emt 0:00:25]} 32. Bf4 {[%emt 0:00:41]} exf3 {[%emt 0:01:53]} 33. Qxf3 {[%emt 0:00:28]} Re1 {[%emt 0:01:00]} 34. Nc1 {[%emt 0:00:56]} Qd1 {[%emt 0:01:42]} 35. Qxd1 {[%emt 0:01:13]} Rxd1 {[%emt 0:00:10]} 36. Kg2 {[%emt 0:00:06]} Be4+ {[%emt 0:00:27]} 37. f3 {[%emt 0:00:24]} Bxf3+ {[%emt 0:00:10]} 38. Kf2 {[%emt 0:00:04]} Bd4+ {[%emt 0:00:14]} 0-1

[Event "27th Kavala Open 2018"]
[Site "Kavala"]
[Date "2018.08.10"]
[Round "8"]
[White "Grigoriadis, Mihail"]
[Black "Kourkoulos Arditis, Stamatis"]
[Result "0-1"]
[ECO "C17"]
[WhiteElo "2230"]
[BlackElo "2433"]
[Annotator "NA"]
[PlyCount "64"]
[EventDate "2018.08.05"]
[EventType "swiss"]
[EventCountry "GRE"]
[SourceTitle "playchess.com"]
[Source "ChessBase"]
[SourceQuality "1"]
[TimeControl "40/5400+30:900+30"]

1. e4 {[%emt 0:12:52]} e6 {[%emt 0:01:31]} 2. d4 {[%emt 0:00:41]} d5 {[%emt 0:00:05]} 3. Nc3 {[%emt 0:00:03]} Bb4 {[%emt 0:00:04]} 4. e5 {[%emt 0:00:03]} c5 {[%emt 0:00:04]} 5. Bd2 {[%emt 0:00:03]} Ne7 {[%emt 0:00:10]} 6. a3 {[%emt 0:00:27]} Bxc3 {[%emt 0:00:05]} 7. Bxc3 {[%emt 0:00:03]} b6 {[%emt 0:06:38]} 8. Nf3 {[%emt 0:00:06]} Ba6 {[%emt 0:05:48]} 9. Bxa6 {[%emt 0:00:09]} Nxa6 {[%emt 0:00:03]} 10. h4 {[%emt 0:00:08]} Qd7 {[%emt 0:03:45]} 11. h5 {[%emt 0:03:59]} h6 {[%emt 0:00:05]} 12. Qe2 {[%emt 0:11:54]} Nb8 {[%emt 0:10:02]} 13. g4 {[%emt 0:03:20]} Nbc6 {[%emt 0:01:34]} 14. Qe3 {[%emt 0:06:59]} O-O-O {[%emt 0:11:25]} 15. O-O-O {[%emt 0:07:29]} c4 {[%emt 0:02:03]} 16. b4 {[%emt 0:14:54]} a6 {[%emt 0:09:24]} 17. Nh4 {[%emt 0:03:53]} Na7 {[%emt 0:02:33]} 18. f4 {[%emt 0:00:25]} Qa4 {[%emt 0:00:17]} 19. Kd2 {[%emt 0:00:55]} Nb5 {[%emt 0:00:23]} 20. Ra1 {[%emt 0:01:41]} Nc6 {[%emt 0:00:28]} 21. Nf3 {[%emt 0:11:33]} Kb7 {[%emt 0:04:13]} 22. Rhb1 {[%emt 0:04:38]} f6 {[%emt 0:02:43]} 23. exf6 {[%emt 0:11:04]} gxf6 {[%emt 0:00:27]} 24. Bb2 {[%emt 0:03:38]} e5 {[%emt 0:07:49]} 25. fxe5 {[%emt 0:00:06]} fxe5 {[%emt 0:00:03]} 26. Nxe5 {[%emt 0:00:13]} Nxe5 {[%emt 0:00:06]} 27. Qxe5 {[%emt 0:00:42]} c3+ {[%emt 0:00:12]} 28. Bxc3 {[%emt 0:00:50]} Nxc3 {[%emt 0:00:04]} 29. Rf1 {[%emt 0:00:47]} Ne4+ {[%emt 0:00:21]} 30. Kd1 {[%emt 0:00:16]} Rh7 {[%emt 0:00:14]} 31. Qe6 {[%emt 0:00:30]} Rc7 {[%emt 0:00:16]} 32. Rc1 {[%emt 0:00:24]} Qxa3 {[%emt 0:00:46]} 0-1

[Event "27th Kavala Open 2018"]
[Site "Kavala"]
[Date "2018.08.11"]
[Round "9"]
[White "Nevednichy, Vladislav"]
[Black "Stathopoulos, Ioannis"]
[Result "1-0"]
[ECO "B51"]
[WhiteElo "2550"]
[BlackElo "2325"]
[Annotator "ChessBase"]
[PlyCount "46"]
[EventDate "2018.08.06"]
[EventType "swiss"]
[EventCountry "GRE"]
[SourceTitle "playchess.com"]
[Source "ChessBase"]
[SourceQuality "1"]
[TimeControl "40/5400+30:900+30"]

1. e4 {[%emt 0:00:09]} c5 {[%emt 0:00:04]} 2. Nf3 {[%emt 0:00:27]} d6 {[%emt 0:00:01]} 3. Bb5+ {[%emt 0:00:47]} Nc6 {[%emt 0:00:27]} 4. O-O {[%emt 0:00:30]} Bd7 {[%emt 0:00:15]} 5. Re1 {[%emt 0:02:14]} Nf6 {[%emt 0:00:12]} 6. c3 {[%emt 0:00:46]} a6 {[%emt 0:00:05]} 7. Bc4 {[%emt 0:01:30]} Bg4 {[%emt 0:01:35]} 8. d4 {[%emt 0:00:06]} cxd4 {[%emt 0:08:00]} 9. cxd4 {[%emt 0:00:28]} e5 {[%emt 0:00:13]} 10. Be3 {[%emt 0:08:13]} Be7 {[%emt 0:07:27]} 11. d5 {[%emt 0:04:50]} Nb8 {[%emt 0:03:53]} 12. Nbd2 {[%emt 0:01:26]} Nbd7 {[%emt 0:08:53]} 13. a4 {[%emt 0:03:32]} a5 {[%emt 0:02:09]} 14. h3 {[%emt 0:00:58]} Bh5 {[%emt 0:00:11]} 15. Bd3 {[%emt 0:03:54]} b6 {[%emt 0:00:52]} 16. Qb1 {[%emt 0:14:55]} Bg6 {[%emt 0:06:28]} 17. Ra3 {[%emt 0:10:23]} Nc5 {[%emt 0:00:23]} 18. Bb5+ {[%emt 0:02:13]} Nfd7 {[%emt 0:00:08]} 19. Bxc5 {[%emt 0:05:08]} bxc5 {[%emt 0:00:17]} 20. Nc4 {[%emt 0:00:24]} O-O {[%emt 0:00:19]} 21. Bxd7 {[%emt 0:00:14]} Qxd7 {[%emt 0:00:18]} 22. Nb6 {[%emt 0:00:07]} Qb7 {[%emt 0:00:07]} 23. Nxa8 {[%emt 0:00:05]} Rxa8 {[%emt 0:00:04]} 1-0

[Event "27th Kavala Open 2018"]
[Site "Kavala"]
[Date "2018.08.11"]
[Round "9"]
[White "Theodorou, Nikolas"]
[Black "Plat, Vojtech"]
[Result "1/2-1/2"]
[ECO "A45"]
[WhiteElo "2532"]
[BlackElo "2524"]
[Annotator "ChessBase"]
[PlyCount "89"]
[EventDate "2018.08.06"]
[EventType "swiss"]
[EventCountry "GRE"]
[SourceTitle "playchess.com"]
[Source "ChessBase"]
[SourceQuality "1"]
[TimeControl "40/5400+30:900+30"]

1. d4 {[%emt 0:00:04]} Nf6 {[%emt 0:00:20]} 2. Nc3 {[%emt 0:00:19]} d6 {[%emt 0:00:06]} 3. Nf3 {[%emt 0:04:30]} Bf5 {[%emt 0:00:07]} 4. Bf4 {[%emt 0:16:51]} e6 {[%emt 0:01:41]} 5. e3 {[%emt 0:00:35]} Nbd7 {[%emt 0:02:10]} 6. Bd3 {[%emt 0:02:31]} Bg6 {[%emt 0:01:19]} 7. Bxg6 {[%emt 0:02:18]} hxg6 {[%emt 0:00:05]} 8. e4 {[%emt 0:05:01]} c6 {[%emt 0:00:09]} 9. Qd3 {[%emt 0:03:04]} Qa5 {[%emt 0:01:30]} 10. Bd2 {[%emt 0:06:20]} Qa6 {[%emt 0:06:18]} 11. Qxa6 {[%emt 0:01:07]} bxa6 {[%emt 0:00:01]} 12. O-O-O {[%emt 0:11:08]} d5 {[%emt 0:00:27]} 13. h3 {[%emt 0:09:59]} Bb4 {[%emt 0:02:39]} 14. e5 {[%emt 0:00:37]} Bxc3 {[%emt 0:00:05]} 15. Bxc3 {[%emt 0:00:02]} Ne4 {[%emt 0:00:08]} 16. Be1 {[%emt 0:00:02]} c5 {[%emt 0:03:05]} 17. dxc5 {[%emt 0:00:50]} Nexc5 {[%emt 0:00:23]} 18. Bb4 {[%emt 0:07:39]} Rc8 {[%emt 0:02:05]} 19. Rhe1 {[%emt 0:01:15]} Rh5 {[%emt 0:06:15]} 20. Bc3 {[%emt 0:02:51]} Ke7 {[%emt 0:08:21]} 21. Bd4 {[%emt 0:04:18]} Rhh8 {[%emt 0:01:02]} 22. Re3 {[%emt 0:00:43]} Rc6 {[%emt 0:00:18]} 23. Ra3 {[%emt 0:01:25]} Rb8 {[%emt 0:01:41]} 24. Be3 {[%emt 0:03:14]} Rc7 {[%emt 0:02:47]} 25. Rd4 {[%emt 0:02:59]} Rbc8 {[%emt 0:03:48]} 26. Rh4 {[%emt 0:03:02]} Ne4 {[%emt 0:01:09]} 27. c3 {[%emt 0:00:29]} Ndc5 {[%emt 0:16:41]} 28. Kc2 {[%emt 0:00:43]} Rb7 {[%emt 0:01:23]} 29. Rh7 {[%emt 0:04:44]} Rcb8 {[%emt 0:03:53]} 30. b4 {[%emt 0:00:02]} Nd7 {[%emt 0:00:05]} 31. Rxg7 {[%emt 0:00:57]} a5 {[%emt 0:01:05]} 32. Rxa5 {[%emt 0:01:02]} Rc7 {[%emt 0:01:17]} 33. Ra3 {[%emt 0:03:15]} Rxb4 {[%emt 0:00:16]} 34. Rg8 {[%emt 0:00:18]} Rbc4 {[%emt 0:05:49]} 35. Bd4 {[%emt 0:00:01]} Nb6 {[%emt 0:01:04]} 36. Rb8 {[%emt 0:02:04]} Na4 {[%emt 0:00:04]} 37. Rbb3 {[%emt 0:00:09]} a5 {[%emt 0:01:17]} 38. h4 {[%emt 0:00:28]} Kf8 {[%emt 0:02:22]} 39. g3 {[%emt 0:00:28]} Kg7 {[%emt 0:00:22]} 40. g4 {[%emt 0:00:00]} Kh7 {[%emt 0:00:00]} 41. Kd3 {[%emt 0:06:27]} Nac5+ {[%emt 0:01:32]} 42. Ke3 {[%emt 0:04:06]} Nxb3 {[%emt 0:01:01]} 43. axb3 {[%emt 0:00:02]} Rxc3+ {[%emt 0:00:07]} 44. Bxc3 {[%emt 0:00:10]} Rxc3+ {[%emt 0:00:01]} 45. Ke2 {[%emt 0:01:22]} 1/2-1/2

[Event "27th Kavala Open 2018"]
[Site "Kavala"]
[Date "2018.08.11"]
[Round "9"]
[White "Kelires, Andreas"]
[Black "Lin, Chen"]
[Result "0-1"]
[ECO "D15"]
[WhiteElo "2531"]
[BlackElo "2506"]
[Annotator "RC"]
[PlyCount "102"]
[EventDate "2018.08.06"]
[EventType "swiss"]
[EventCountry "GRE"]
[SourceTitle "playchess.com"]
[Source "ChessBase"]
[SourceQuality "1"]
[TimeControl "40/5400+30:900+30"]

1. d4 {[%emt 0:00:02]} d5 {[%emt 0:05:07]} 2. c4 {[%emt 0:00:21]} c6 {[%emt 0:00:07]} 3. Nf3 {[%emt 0:00:04]} Nf6 {[%emt 0:00:06]} 4. Nc3 {[%emt 0:00:14]} a6 {[%emt 0:00:06]} 5. e3 {[%emt 0:00:55]} Bf5 {[%emt 0:01:23]} 6. Be2 {[%emt 0:02:09]} e6 {[%emt 0:00:50]} 7. Nh4 {[%emt 0:03:47]} Bg6 {[%emt 0:00:08]} 8. Nxg6 {[%emt 0:05:38]} hxg6 {[%emt 0:00:09]} 9. Qc2 {[%emt 0:00:16]} Nbd7 {[%emt 0:02:33]} 10. b3 {[%emt 0:04:05]} Bb4 {[%emt 0:12:10]} 11. Bd2 {[%emt 0:11:08]} Qe7 {[%emt 0:05:36]} 12. f3 {[%emt 0:19:22]} e5 {[%emt 0:06:02]} 13. c5 {[%emt 0:12:10]} O-O {[%emt 0:02:14]} 14. O-O {[%emt 0:02:11]} exd4 {[%emt 0:03:41]} 15. exd4 {[%emt 0:00:03]} Nxc5 {[%emt 0:00:55]} 16. Nxd5 {[%emt 0:04:59]} Nxd5 {[%emt 0:05:44]} 17. Bxb4 {[%emt 0:00:04]} Qe3+ {[%emt 0:00:43]} 18. Kh1 {[%emt 0:00:34]} Nxb3 {[%emt 0:00:49]} 19. axb3 {[%emt 0:03:51]} Nxb4 {[%emt 0:00:09]} 20. Qc5 {[%emt 0:00:06]} Qxe2 {[%emt 0:12:03]} 21. Qxb4 {[%emt 0:00:03]} Qb5 {[%emt 0:00:09]} 22. Qc3 {[%emt 0:00:04]} Rfe8 {[%emt 0:00:50]} 23. h3 {[%emt 0:02:10]} Rad8 {[%emt 0:02:38]} 24. Rfd1 {[%emt 0:00:23]} Qg5 {[%emt 0:01:41]} 25. Re1 {[%emt 0:01:48]} Qf4 {[%emt 0:04:53]} 26. Qb4 {[%emt 0:01:35]} Qc7 {[%emt 0:03:04]} 27. Qc5 {[%emt 0:08:06]} Qd7 {[%emt 0:00:43]} 28. Qb4 {[%emt 0:00:19]} Kh7 {[%emt 0:03:01]} 29. Rad1 {[%emt 0:03:32]} f6 {[%emt 0:02:28]} 30. Re4 {[%emt 0:01:58]} Qf7 {[%emt 0:03:30]} 31. Rde1 {[%emt 0:01:37]} Rxe4 {[%emt 0:00:04]} 32. fxe4 {[%emt 0:01:09]} Rd7 {[%emt 0:00:12]} 33. e5 {[%emt 0:01:32]} Qe6 {[%emt 0:00:48]} 34. Qc3 {[%emt 0:04:03]} a5 {[%emt 0:02:57]} 35. Re4 {[%emt 0:04:14]} Rd5 {[%emt 0:02:48]} 36. Rh4+ {[%emt 0:02:19]} Kg8 {[%emt 0:00:02]} 37. exf6 {[%emt 0:00:19]} Qxf6 {[%emt 0:01:37]} 38. Rg4 {[%emt 0:00:29]} Rf5 {[%emt 0:01:13]} 39. Qg3 {[%emt 0:00:38]} g5 {[%emt 0:00:39]} 40. Re4 {[%emt 0:00:00]} Rf4 {[%emt 0:00:00]} 41. Re5 {[%emt 0:04:19]} b5 {[%emt 0:11:57]} 42. Rxg5 {[%emt 0:02:08]} Rf1+ {[%emt 0:00:38]} 43. Kh2 {[%emt 0:00:04]} Qxd4 {[%emt 0:00:19]} 44. h4 {[%emt 0:02:07]} Qf6 {[%emt 0:06:48]} 45. Qb8+ {[%emt 0:07:18]} Qf8 {[%emt 0:00:02]} 46. Qg3 {[%emt 0:00:09]} Rf5 {[%emt 0:00:14]} 47. Rg4 {[%emt 0:00:35]} Qe7 {[%emt 0:02:04]} 48. Qd3 {[%emt 0:02:12]} Rd5 {[%emt 0:01:23]} 49. Qf3 {[%emt 0:00:26]} Qe5+ {[%emt 0:01:00]} 50. Rg3 {[%emt 0:01:21]} Rd4 {[%emt 0:00:06]} 51. Kg1 {[%emt 0:00:38]} Rxh4 {[%emt 0:02:02]} 0-1

[Event "27th Kavala Open 2018"]
[Site "Kavala"]
[Date "2018.08.11"]
[Round "9"]
[White "Dimitrov, Radoslav"]
[Black "Ni, Shiqun"]
[Result "1-0"]
[ECO "D02"]
[WhiteElo "2518"]
[BlackElo "2436"]
[Annotator "ChessBase"]
[PlyCount "93"]
[EventDate "2018.08.06"]
[EventType "swiss"]
[EventCountry "GRE"]
[SourceTitle "playchess.com"]
[Source "ChessBase"]
[SourceQuality "1"]
[TimeControl "40/5400+30:900+30"]

1. d4 d5 {[%emt 0:04:38]} 2. Nf3 {[%emt 0:00:11]} Bf5 {[%emt 0:04:41]} 3. c4 {[%emt 0:02:49]} e6 {[%emt 0:00:09]} 4. Nc3 {[%emt 0:00:32]} c6 {[%emt 0:00:18]} 5. Qb3 {[%emt 0:01:38]} Qb6 {[%emt 0:04:13]} 6. c5 {[%emt 0:00:14]} Qc7 {[%emt 0:05:00]} 7. Bf4 {[%emt 0:00:28]} Qc8 {[%emt 0:00:00]} 8. e3 {[%emt 0:00:27]} Be7 {[%emt 0:02:15]} 9. Be2 {[%emt 0:00:11]} Nd7 {[%emt 0:03:06]} 10. O-O {[%emt 0:02:01]} Ngf6 {[%emt 0:01:38]} 11. h3 {[%emt 0:06:20]} Ne4 {[%emt 0:01:56]} 12. Nxe4 {[%emt 0:00:40]} Bxe4 {[%emt 0:00:02]} 13. Qc3 {[%emt 0:01:35]} O-O {[%emt 0:06:45]} 14. b4 {[%emt 0:00:09]} b6 {[%emt 0:16:54]} 15. Ne5 {[%emt 0:08:02]} bxc5 {[%emt 0:05:16]} 16. bxc5 {[%emt 0:00:25]} Nxe5 {[%emt 0:00:06]} 17. Bxe5 {[%emt 0:00:06]} Bd8 {[%emt 0:00:12]} 18. Bd3 {[%emt 0:07:53]} Bc7 {[%emt 0:10:20]} 19. Bxe4 {[%emt 0:01:18]} dxe4 {[%emt 0:00:06]} 20. Bxc7 {[%emt 0:01:30]} Qxc7 {[%emt 0:00:01]} 21. Qc2 {[%emt 0:00:18]} f5 {[%emt 0:02:30]} 22. Rab1 {[%emt 0:02:51]} Rac8 {[%emt 0:06:46]} 23. Rb4 {[%emt 0:03:30]} Qe7 {[%emt 0:07:46]} 24. Rfb1 {[%emt 0:00:29]} Rc7 {[%emt 0:00:03]} 25. Qb3 {[%emt 0:09:24]} Kf7 {[%emt 0:01:11]} 26. Rb8 {[%emt 0:01:33]} Rxb8 {[%emt 0:03:47]} 27. Qxb8 {[%emt 0:00:03]} Kg6 {[%emt 0:09:07]} 28. a4 {[%emt 0:07:13]} e5 {[%emt 0:00:26]} 29. dxe5 {[%emt 0:00:37]} Qxe5 {[%emt 0:00:24]} 30. Rd1 {[%emt 0:00:59]} Re7 {[%emt 0:01:41]} 31. Rd6+ {[%emt 0:07:03]} Kf7 {[%emt 0:00:18]} 32. Qb3+ {[%emt 0:00:18]} Kf8 {[%emt 0:01:23]} 33. Rxc6 {[%emt 0:00:19]} Qa1+ {[%emt 0:02:58]} 34. Kh2 {[%emt 0:00:03]} Qe5+ {[%emt 0:00:01]} 35. g3 {[%emt 0:00:12]} g6 {[%emt 0:01:00]} 36. Rc8+ {[%emt 0:00:41]} Kg7 {[%emt 0:00:20]} 37. c6 {[%emt 0:01:30]} Kh6 {[%emt 0:00:18]} 38. Rd8 {[%emt 0:04:45]} Qc7 {[%emt 0:00:54]} 39. Qd5 {[%emt 0:00:49]} Re5 {[%emt 0:00:23]} 40. Qd4 {[%emt 0:00:00]} Re6 {[%emt 0:00:00]} 41. Rd7 {[%emt 0:01:11]} Qe5 {[%emt 0:04:38]} 42. c7 {[%emt 0:02:49]} Qxd4 {[%emt 0:03:38]} 43. exd4 {[%emt 0:00:30]} Rc6 {[%emt 0:01:17]} 44. d5 {[%emt 0:00:41]} Rc2 {[%emt 0:00:17]} 45. Kg1 {[%emt 0:00:01]} Rc1+ {[%emt 0:00:52]} 46. Kg2 {[%emt 0:00:06]} Rc2 {[%emt 0:00:02]} 47. Kf1 {[%emt 0:00:17]} 1-0

[Event "27th Kavala Open 2018"]
[Site "Kavala"]
[Date "2018.08.11"]
[Round "9"]
[White "Markidis, Konstantinos"]
[Black "Markelova, Lubov"]
[Result "1/2-1/2"]
[ECO "C02"]
[WhiteElo "2335"]
[BlackElo "2143"]
[Annotator "NA"]
[PlyCount "27"]
[EventDate "2018.08.06"]
[EventType "swiss"]
[EventCountry "GRE"]
[SourceTitle "playchess.com"]
[Source "ChessBase"]
[SourceQuality "1"]
[TimeControl "40/5400+30:900+30"]

1. e4 {[%emt 0:04:09]} e6 {[%emt 0:00:04]} 2. d4 {[%emt 0:00:28]} d5 {[%emt 0:00:06]} 3. e5 {[%emt 0:00:22]} c5 {[%emt 0:00:37]} 4. c3 {[%emt 0:00:08]} Qb6 {[%emt 0:00:26]} 5. Nf3 {[%emt 0:00:15]} Nc6 {[%emt 0:00:18]} 6. a3 {[%emt 0:00:46]} Nh6 {[%emt 0:00:50]} 7. b4 {[%emt 0:02:00]} cxd4 {[%emt 0:00:41]} 8. b5 {[%emt 0:00:39]} Na5 {[%emt 0:14:58]} 9. Bxh6 {[%emt 0:00:23]} gxh6 {[%emt 0:01:05]} 10. cxd4 {[%emt 0:00:06]} Bd7 {[%emt 0:05:26]} 11. Nbd2 {[%emt 0:00:20]} Rg8 {[%emt 0:06:34]} 12. g3 {[%emt 0:27:17]} Rc8 {[%emt 0:08:32]} 13. a4 {[%emt 0:02:00]} Bb4 {[%emt 0:03:51]} 14. Rb1 {[%emt 0:09:10]} 1/2-1/2